lending/lending_fUSD_20250114
["ID","MTS","AMOUNT","RATE_DAILY","PERIOD"]
[348918221,1736872288509,-617.55721,0.00013699,2]
[348918222,1736872288522,-233.424069,0.00013699,2]
[348918223,1736872288533,-865.18296,0.00013699,2]
[348918224,1736872288543,-865.18296,0.00013699,2]
[348918225,1736872288553,-10000.0,0.00013699,2]
[348918226,1736872288562,-10000.0,0.00013699,2]
[348918227,1736872288572,-10000.0,0.00013699,2]
[348918228,1736872288582,-400.0,0.00013699,2]
[348918229,1736872288593,-151.0,0.00013699,2]
[348918230,1736872288604,-400.0,0.00013699,2]
[348918231,1736872288614,-151.0,0.00013699,2]
[348918232,1736872288624,-193.646661,0.00013699,2]
[348918233,1736872288634,-151.0,0.00013699,2]
[348918234,1736872288643,-193.646661,0.00013699,2]
[348918235,1736872288653,-500.0,0.00013699,2]
[348918236,1736872288662,-500.0,0.00013699,2]
[348918237,1736872288672,-500.0,0.00013699,2]
[348918238,1736872288682,-500.0,0.00013699,2]
[348918239,1736872288691,-550.26289874,0.00013699,2]
[348918240,1736872288700,-300.0,0.000137,2]
[348918241,1736872288710,-4450.9,0.000137,2]
[348918242,1736872288720,-4450.9,0.000137,2]
[348918243,1736872288730,-4450.9,0.000137,2]
[348918244,1736872288740,-666.0,0.00013724,2]
[348918245,1736872288750,-151.0,0.00013725,2]
[348918246,1736872288760,-151.0,0.00013725,2]
[348918247,1736872288769,-151.0,0.00013725,2]
[348918248,1736872288779,-151.0,0.00013725,2]
[348918249,1736872288789,-389.102177,0.00013725,2]
[348918250,1736872288798,-151.0,0.00013725,2]
[348918251,1736872288807,-151.0,0.00013725,2]
[348918252,1736872288817,-787.538583,0.00013725,2]
[348918253,1736872288826,-787.538583,0.00013725,2]
[348918254,1736872288838,-1271.53,0.00013725,2]
[348918255,1736872288847,-1644.81,0.00013725,2]
[348918256,1736872288856,-1764.64,0.00013725,2]
[348918257,1736872288866,-1182.39,0.00013725,2]
[348918258,1736872288876,-2864.91,0.00013725,2]
[348918259,1736872288885,-2088.07,0.00013725,2]
[348918260,1736872288895,-3460.76,0.00013725,2]
[348918261,1736872288905,-3934.84,0.00013725,2]
[348918262,1736872288914,-1542.99,0.00013725,2]
[348918263,1736872288923,-4501.55,0.00013725,2]
[348918264,1736872288932,-152.0,0.00013737,6]
[348918265,1736872288941,-151.0,0.00013793,2]
[348918266,1736872288951,-235.64,0.00013793,2]
[348918267,1736872288960,-151.0,0.00013793,2]
[348918268,1736872288970,-151.0,0.00013793,2]
[348918269,1736872288980,-151.0,0.00013793,2]
[348918270,1736872288990,-2340.78,0.00013793,2]
[348918271,1736872289000,-3843.52,0.00013793,2]
[348918272,1736872289010,-1528.57,0.00013793,2]
[348918273,1736872289020,-1660.46,0.00013793,2]
[348918274,1736872289030,-1123.89,0.00013793,2]
[348918275,1736872289039,-1056.44,0.00013793,2]
[348918276,1736872289049,-666.0,0.000138,2]
[348918277,1736872289058,-2582.46,0.000138,2]
[348918278,1736872289067,-3766.22,0.000138,2]
[348918279,1736872289077,-2301.61,0.000138,2]
[348918280,1736872289087,-1547.57,0.000138,2]
[348918281,1736872289097,-3820.79,0.000138,2]
[348918282,1736872289107,-500.0,0.000138,2]
[348918283,1736872289117,-1208.85,0.000138,2]
[348918284,1736872289127,-1426.4,0.000138,2]
[348918285,1736872289137,-151.0,0.00013801,2]
[348918286,1736872289146,-151.0,0.00013801,2]
[348918287,1736872289156,-151.0,0.00013801,2]
[348918288,1736872289166,-151.0,0.00013801,2]
[348918289,1736872289175,-151.0,0.00013801,2]
[348918290,1736872289184,-151.0,0.00013801,2]
[348918291,1736872289194,-583.02,0.00013801,2]
[348918292,1736872289204,-714.03,0.00013801,2]
[348918293,1736872289213,-1181.5,0.00013801,2]
[348918294,1736872289224,-1068.78,0.00013801,2]
[348918295,1736872289234,-866.79,0.00013801,2]
[348918296,1736872289243,-602.0,0.00013801,2]
[348918297,1736872289253,-508.85,0.00013801,2]
[348918298,1736872289263,-634.25,0.00013801,2]
[348918299,1736872289272,-536.73,0.00013801,2]
[348918300,1736872289282,-692.74,0.00013801,2]
[348918301,1736872289292,-1038.27,0.00013801,2]
[348918302,1736872289302,-516.91,0.00013801,2]
[348918303,1736872289315,-747.3,0.00013801,2]
[348918304,1736872289325,-500.0,0.00013801,2]
[348918305,1736872289335,-561.38,0.00013801,2]
[348918306,1736872289345,-988.41,0.00013801,2]
[348918307,1736872289357,-681.34,0.00013801,2]
[348918308,1736872289368,-500.0,0.00013801,2]
[348918309,1736872289377,-1790.56,0.00013801,2]
[348918310,1736872289388,-500.0,0.00013801,2]
[348918311,1736872289398,-500.0,0.00013801,2]
[348918312,1736872289408,-797.39,0.00013801,2]
[348918313,1736872289417,-778.29,0.00013801,2]
[348918314,1736872289426,-940.99,0.00013801,2]
[348918315,1736872289436,-1006.25,0.00013801,2]
[348918316,1736872289445,-1229.29,0.00013801,2]
[348918317,1736872289455,-500.0,0.00013801,2]
[348918318,1736872289464,-976.73,0.00013801,2]
[348918319,1736872289475,-563.76,0.00013801,2]
[348918320,1736872289485,-1040.02,0.00013801,2]
[348918321,1736872289496,-1044.65,0.00013801,2]
[348918322,1736872289506,-747.75,0.00013801,2]
[348918323,1736872289515,-942.04,0.00013801,2]
[348918324,1736872289525,-1793.87,0.00013801,2]
[348918325,1736872289535,-1163.45,0.00013801,2]
[348918326,1736872289544,-500.0,0.00013801,2]
[348918327,1736872289554,-593.13,0.00013801,2]
[348918328,1736872289564,-380.9129382,0.00013801,2]
[348918329,1736872289574,-1074.9,0.00013801,2]
[348918330,1736872289584,-1106.23,0.00013801,2]
[348918331,1736872289595,-1223.96,0.00013801,2]
[348918332,1736872289604,-2876.96,0.00013801,2]
[348918333,1736872289615,-941.53,0.00013801,2]
[348918334,1736872289625,-826.21,0.00013801,2]
[348918335,1736872289635,-713.39,0.00013801,2]
[348918336,1736872289645,-1982.6,0.00013801,2]
[348918337,1736872289654,-1061.78,0.00013801,2]
[348918338,1736872289664,-1269.8,0.00013801,2]
[348918339,1736872289674,-1071.15,0.00013801,2]
[348918340,1736872289683,-647.07,0.00013801,2]
[348918341,1736872289693,-1641.47,0.00013801,2]
[348918342,1736872289703,-1015.13304,0.00013801,2]
[348918343,1736872289713,-1061.21,0.00013801,2]
[348918344,1736872289723,-303.88290293,0.00013801,2]
[348918345,1736872289881,-850.59,0.00013801,2]
[348918346,1736872289893,-500.0,0.00013801,2]
[348918347,1736872289903,-4483.26,0.00013801,2]
[348918348,1736872289913,-1028.024937,0.00013801,2]
[348918349,1736872289923,-1008.96,0.00013801,2]
[348918350,1736872289932,-500.0,0.00013801,2]
[348918351,1736872289942,-1034.71,0.00013801,2]
[348918352,1736872289951,-856.72,0.00013801,2]
[348918353,1736872289961,-729.65,0.00013801,2]
[348918354,1736872289970,-807.27,0.00013801,2]
[348918355,1736872289980,-1242.21,0.00013801,2]
[348918356,1736872289989,-1062.24,0.00013801,2]
[348918357,1736872289999,-942.52,0.00013801,2]
[348918358,1736872290009,-570.32,0.00013801,2]
[348918359,1736872290019,-957.09,0.00013801,2]
[348918360,1736872290029,-324.33803483,0.00013801,2]
[348918361,1736872290040,-500.0,0.00013801,2]
[348918362,1736872290050,-693.23,0.00013801,2]
[348918363,1736872290060,-3653.54,0.00013801,2]
[348918364,1736872290070,-583.72,0.00013801,2]
[348918365,1736872290080,-1575.62,0.00013801,2]
[348918366,1736872290090,-500.0,0.00013801,2]
[348918367,1736872290100,-3284.13,0.00013801,2]
[348918368,1736872290110,-1170.16,0.00013801,2]
[348918369,1736872290120,-10132.63,0.00013801,2]
[348918370,1736872290129,-775.45,0.00013801,2]
[348918371,1736872290139,-500.0,0.00013801,2]
[348918372,1736872290148,-1128.07,0.00013801,2]
[348918373,1736872290157,-500.0,0.00013801,2]
[348918374,1736872290167,-773.5,0.00013801,2]
[348918375,1736872290177,-593.12,0.00013801,2]
[348918376,1736872290186,-4764.34,0.00013801,2]
[348918377,1736872290196,-1091.87,0.00013801,2]
[348918378,1736872290205,-804.34,0.00013801,2]
[348918379,1736872290215,-3004.08,0.00013801,2]
[348918380,1736872290225,-628.33,0.00013801,2]
[348918381,1736872290234,-721.13,0.00013801,2]
[348918382,1736872290243,-2906.87,0.00013801,2]
[348918383,1736872290254,-6610.26,0.00013801,2]
[348918384,1736872290265,-1597.69,0.00013801,2]
[348918385,1736872290274,-903.79,0.00013801,2]
[348918386,1736872290284,-500.0,0.00013801,2]
[348918387,1736872290293,-505.24,0.00013801,2]
[348918388,1736872290303,-5191.48,0.00013801,2]
[348918389,1736872290316,-1417.4,0.00013801,2]
[348918390,1736872290326,-1623.37,0.00013801,2]
[348918391,1736872290337,-521.86524969,0.00013801,2]
[348918392,1736872290347,-903.24,0.00013801,2]
[348918393,1736872290358,-1969.17,0.00013801,2]
[348918394,1736872290368,-962.15,0.00013801,2]
[348918395,1736872290377,-932.49,0.00013801,2]
[348918396,1736872290389,-956.86,0.00013801,2]
[348918397,1736872290398,-1098.98,0.00013801,2]
[348918398,1736872290407,-500.0,0.00013801,2]
[348918399,1736872290417,-3822.97,0.00013801,2]
[348918400,1736872290426,-500.0,0.00013801,2]
[348918401,1736872290436,-572.49,0.00013801,2]
[348918402,1736872290446,-500.0,0.00013801,2]
[348918403,1736872290456,-2529.39,0.00013801,2]
[348918404,1736872290466,-764.12,0.00013801,2]
[348918405,1736872290476,-987.24,0.00013801,2]
[348918406,1736872290486,-500.0,0.00013801,2]
[348918407,1736872290495,-1889.58,0.00013801,2]
[348918408,1736872290505,-538.84,0.00013801,2]
[348918409,1736872290515,-500.0,0.00013801,2]
[348918410,1736872290525,-8094.23,0.00013801,2]
[348918411,1736872290534,-289.35314251,0.00013802,2]
[348918412,1736872290543,-500.0,0.00013802,2]
[348918413,1736872290553,-500.0,0.00013802,2]
[348918414,1736872290562,-547.14,0.00013802,2]
[348918415,1736872290572,-215.04115247,0.00013802,2]
[348918416,1736872290580,-500.0,0.00013802,2]
[348918417,1736872290591,-500.0,0.00013802,2]
[348918418,1736872290602,-500.0,0.00013802,2]
[348918419,1736872290612,-1451.36,0.00013802,2]
[348918420,1736872290621,-500.0,0.00013802,2]
[348918421,1736872290631,-1176.92,0.00013802,2]
[348918422,1736872290642,-1055.97,0.00013802,2]
[348918423,1736872290652,-500.0,0.00013802,2]
[348918424,1736872290662,-2317.71,0.00013802,2]
[348918425,1736872290671,-1470.32,0.00013802,2]
[348918426,1736872290680,-2492.01,0.00013802,2]
[348918427,1736872290691,-1795.2,0.00013802,2]
[348918428,1736872290700,-231.282348,0.00013803,2]
[348918429,1736872290710,-231.282348,0.00013803,2]
[348918430,1736872290719,-151.0,0.00013803,2]
[348918431,1736872290728,-306.195203,0.00013803,2]
[348918432,1736872290738,-306.195203,0.00013803,2]
[348918433,1736872290747,-500.0,0.00013803,2]
[348918434,1736872290757,-662.39,0.00013803,2]
[348918435,1736872290767,-3236.94,0.00013803,2]
[348918436,1736872290777,-484.40542836,0.00013859,2]
[348918437,1736872290787,-1456.54324193,0.00013907,2]
[348918438,1736872290797,-58371.4801748,0.00013967,4]
[348918439,1736872291168,-500.0,9.965e-05,2]
[348918440,1736872291178,-500.0,9.966e-05,2]
[348918441,1736872291188,-89.53701328,9.966e-05,2]
[348918442,1736872291199,-410.46298672,9.966e-05,2]
[348918443,1736872291209,-218.07230935,9.978e-05,3]
[348918444,1736872291225,-1020.25567286,9.978e-05,3]
[348918445,1736872291236,-1259.0,0.00010229,2]
[348918446,1736872291246,-906.0,0.00010229,2]
[348918447,1736872291255,-820.0,0.00010229,2]
[348918448,1736872291265,-838.60128921,0.00010229,2]
[348918449,1736872291291,-2106.39871079,0.00010229,2]
[348918450,1736872291302,-500.0,0.00010238,2]
[348918451,1736872291315,-500.0,0.00010512,2]
[348918452,1736872291324,-500.0,0.00010786,2]
[348918453,1736872291334,-500.0,0.0001106,2]
[348918454,1736872291349,-500.0,0.00011227,2]
[348918455,1736872291359,-500.0,0.00011334,2]
[348918456,1736872291369,-500.0,0.00011334,2]
[348918457,1736872291379,-1365.4,0.00011501,2]
[348918458,1736872291391,-500.0,0.00011501,2]
[348918459,1736872291401,-500.0,0.00011608,2]
[348918460,1736872291411,-1365.4,0.00011775,2]
[348918461,1736872291421,-500.0,0.00011775,2]
[348918462,1736872291430,-500.0,0.00011882,2]
[348918463,1736872291441,-1365.4,0.00012049,2]
[348918464,1736872291450,-500.0,0.00012049,2]
[348918465,1736872291459,-267.29,0.00012156,2]
[348918466,1736872291469,-1365.4,0.00012323,2]
[348918467,1736872291480,-2343.5,0.00012972,2]
[348918468,1736872291489,-4913.35,0.0001298,2]
[348918469,1736872291499,-2343.5,0.00013246,2]
[348918470,1736872291509,-4913.35,0.00013254,2]
[348918471,1736872291518,-2343.5,0.0001352,2]
[348918472,1736872291528,-4913.35,0.00013528,2]
[348918473,1736872291538,-2343.5,0.00013793,2]
[348918474,1736872291548,-4913.35,0.00013802,2]
[348918475,1736872291558,-105679.32771043,0.00013967,4]
[348918476,1736872291585,-500.0,9.965e-05,2]
[348918477,1736872291597,-144.065779,0.00012329,2]
[348918478,1736872293893,500.0,0.00023,120]
[348918479,1736872294003,500.0,0.00023,120]
[348918480,1736872294033,500.0,0.00023,120]
[348918481,1736872294293,500.0,0.00023,120]
[348918482,1736872294376,500.0,0.00023,120]
[348918483,1736872294416,500.0,0.00023,120]
[348918484,1736872294462,500.0,0.00023,120]
[348918485,1736872294516,500.0,0.00023,120]
[348918486,1736872294638,500.0,0.00023,120]
[348918487,1736872294666,500.0,0.00023,120]
[348918488,1736872294747,500.0,0.00023,120]
[348918489,1736872294776,500.0,0.00023,120]
[348918490,1736872294868,610.3649906,0.00023,120]
[348918491,1736872294897,500.0,0.00023,120]
[348918492,1736872294940,500.0,0.00023,120]
[348918493,1736872295035,500.0,0.00023,120]
[348918494,1736872295101,500.0,0.00023,120]
[348918495,1736872295170,500.0,0.00023,120]
[348918496,1736872295462,500.0,0.00023,120]
[348918497,1736872295554,522.69498731,0.00023,120]
[348918498,1736872296716,150.0,0.00020512,120]
[348918499,1736872350801,150.0,0.00021559,120]
[348918500,1736872388623,1342.22,8.219e-05,2]
[348918501,1736872392669,500.0,0.00022404,120]
[348918502,1736872393016,500.0,0.00022999,120]
[348918503,1736872404096,955.004263,0.00022085,120]
[348918504,1736872407069,500.0,0.0002212,120]
[348918505,1736872407419,500.0,0.00022999,120]
[348918506,1736872410790,150.0,0.00020641,120]
[348918507,1736872442642,200.0,0.00022428,120]
[348918508,1736872470832,150.0,0.00022862,120]
[348918509,1736872531358,150.0,0.00021431,120]
[348918510,1736872586790,555.66492885,9.964e-05,120]
[348918511,1736872590796,150.0,0.00021407,120]
[348918512,1736872650802,150.0,0.00022455,120]
[348918513,1736872676619,1000.0,0.00021917,120]
[348918514,1736872676880,1000.0,0.00021917,120]
[348918515,1736872677138,955.76566057,0.00021917,120]
[348918516,1736872710864,150.0,0.00022299,120]
[348918517,1736872770773,150.0,0.00022042,120]
[348918518,1736872831488,150.0,0.0002085,120]
[348918519,1736872886884,151.0,0.00023,120]
[348918520,1736872890800,150.0,0.00020188,120]
[348918521,1736872950817,150.0,0.00019601,120]
[348918522,1736872992207,500.0,0.00022637,120]
[348918523,1736873005111,500.0,0.00022592,120]
[348918524,1736873010792,150.0,0.00022736,120]
[348918526,1736873041211,200.0,0.00022597,120]
[348918527,1736873071416,150.0,0.00022405,120]
[348918528,1736873131201,150.0,0.00020358,120]
[348918529,1736873190767,150.0,0.00021253,120]
[348918532,1736873250820,150.0,0.00021639,120]
[348918538,1736873310756,150.0,0.00022207,120]
[348918553,1736873356192,1275.1,8.219e-05,2]
[348918554,1736873370789,150.0,0.00022178,120]
[348918558,1736873430735,150.0,0.00022068,120]
[348918564,1736873432398,-963.68,8.971e-05,2]
[348918565,1736873432407,-250.0,8.972e-05,2]
[348918566,1736873432417,-1000.0,8.973e-05,2]
[348918567,1736873432426,-244.38,8.975e-05,2]
[348918568,1736873432435,-617.72,8.976e-05,2]
[348918569,1736873432444,-168.07,9.24e-05,2]
[348918570,1736873432454,-177.685201,9.532e-05,2]
[348918571,1736873432463,-300.0,9.863e-05,2]
[348918572,1736873432472,-10781.364799,9.864e-05,2]
[348918573,1736873432495,-361.11503827,9.864e-05,2]
[348918574,1736873432508,-16471.52016273,9.864e-05,2]
[348918575,1736873432518,-775.0,9.963e-05,2]
[348918576,1736873432528,-150.0,9.963e-05,2]
[348918577,1736873432538,-554.27,9.963e-05,2]
[348918578,1736873432548,-500.0,9.963e-05,2]
[348918579,1736873432557,-1298.27,9.963e-05,2]
[348918580,1736873432567,-1067.04,9.963e-05,2]
[348918581,1736873432576,-2046.78,9.963e-05,2]
[348918582,1736873432585,-1253.37,9.963e-05,2]
[348918583,1736873432594,-494.40116616,9.963e-05,2]
[348918584,1736873432603,-500.0,9.963e-05,2]
[348918585,1736873432612,-831.64,9.963e-05,2]
[348918586,1736873432621,-2049.18,9.963e-05,2]
[348918587,1736873432632,-721.04,9.963e-05,2]
[348918588,1736873432643,-500.0,9.963e-05,2]
[348918589,1736873432653,-500.0,9.963e-05,2]
[348918590,1736873432663,-551.69,9.963e-05,2]
[348918591,1736873432673,-638.19,9.963e-05,2]
[348918592,1736873432682,-584.27805933,9.963e-05,2]
[348918593,1736873432697,-500.0,9.963e-05,2]
[348918594,1736873432707,-526.93,9.963e-05,2]
[348918595,1736873432717,-500.0,9.963e-05,2]
[348918596,1736873432727,-2294.02,9.963e-05,2]
[348918597,1736873432737,-931.12,9.963e-05,2]
[348918598,1736873432746,-737.34,9.963e-05,2]
[348918599,1736873432756,-500.0,9.963e-05,2]
[348918600,1736873432766,-500.0,9.963e-05,2]
[348918601,1736873432776,-1061.62,9.963e-05,2]
[348918602,1736873432786,-500.0,9.963e-05,2]
[348918603,1736873432795,-500.0,9.964e-05,2]
[348918604,1736873432805,-500.0,9.964e-05,2]
[348918605,1736873432814,-500.0,9.964e-05,2]
[348918606,1736873432823,-503.03803374,9.964e-05,2]
[348918607,1736873432832,-682.17,9.964e-05,2]
[348918608,1736873432842,-500.0,9.964e-05,2]
[348918609,1736873432852,-500.0,9.964e-05,2]
[348918610,1736873432861,-500.0,9.964e-05,2]
[348918611,1736873432870,-500.0,9.964e-05,2]
[348918612,1736873432879,-500.0,9.964e-05,2]
[348918613,1736873432888,-500.0,9.964e-05,2]
[348918614,1736873432897,-500.0,9.964e-05,2]
[348918615,1736873432907,-500.0,9.964e-05,2]
[348918616,1736873432916,-500.0,9.964e-05,2]
[348918617,1736873432925,-524.34332142,9.964e-05,2]
[348918618,1736873432934,-500.0,9.964e-05,2]
[348918619,1736873432943,-500.0,9.964e-05,2]
[348918620,1736873432952,-500.0,9.964e-05,2]
[348918621,1736873432964,-503.10245252,9.964e-05,2]
[348918622,1736873432974,-500.0,9.964e-05,2]
[348918624,1736873432983,-500.0,9.964e-05,2]
[348918625,1736873432992,-500.0,9.964e-05,2]
[348918626,1736873433001,-500.0,9.964e-05,2]
[348918627,1736873433012,-500.0,9.964e-05,2]
[348918628,1736873433023,-500.0,9.964e-05,2]
[348918629,1736873433034,-500.0,9.964e-05,2]
[348918630,1736873433045,-500.0,9.964e-05,2]
[348918631,1736873433055,-500.0,9.964e-05,2]
[348918632,1736873433065,-500.0,9.964e-05,2]
[348918633,1736873433074,-500.0,9.964e-05,2]
[348918634,1736873433084,-500.0,9.964e-05,2]
[348918635,1736873433093,-500.0,9.964e-05,2]
[348918636,1736873433102,-500.0,9.964e-05,2]
[348918637,1736873433111,-500.0,9.964e-05,2]
[348918638,1736873433120,-501.87636153,9.964e-05,2]
[348918639,1736873433130,-500.0,9.964e-05,2]
[348918640,1736873433139,-500.0,9.964e-05,2]
[348918641,1736873433148,-500.0,9.964e-05,2]
[348918642,1736873433157,-500.0,9.964e-05,2]
[348918643,1736873433166,-500.0,9.964e-05,2]
[348918645,1736873433177,-500.0,9.964e-05,2]
[348918646,1736873433186,-500.0,9.964e-05,2]
[348918648,1736873433196,-500.0,9.964e-05,2]
[348918650,1736873433205,-500.0,9.964e-05,2]
[348918652,1736873433214,-500.0,9.964e-05,2]
[348918654,1736873433224,-500.0,9.964e-05,2]
[348918656,1736873433233,-173.73123733,9.964e-05,2]
[348918658,1736873433243,-500.0,9.964e-05,2]
[348918660,1736873433252,-500.0,9.964e-05,2]
[348918662,1736873433265,-500.0,9.964e-05,2]
[348918664,1736873433277,-500.0,9.964e-05,2]
[348918666,1736873433289,-507.01333084,9.964e-05,2]
[348918669,1736873433303,-500.0,9.964e-05,2]
[348918671,1736873433316,-500.0,9.964e-05,2]
[348918673,1736873433327,-440.57066798,9.964e-05,2]
[348918676,1736873433338,-500.0,9.964e-05,2]
[348918678,1736873433350,-500.0,9.964e-05,2]
[348918680,1736873433362,-500.0,9.964e-05,2]
[348918682,1736873433375,-500.0,9.964e-05,2]
[348918685,1736873433386,-500.0,9.964e-05,2]
[348918687,1736873433398,-500.0,9.964e-05,2]
[348918689,1736873433410,-500.0,9.964e-05,2]
[348918691,1736873433422,-500.0,9.964e-05,2]
[348918694,1736873433434,-500.0,9.964e-05,2]
[348918696,1736873433446,-500.0,9.964e-05,2]
[348918698,1736873433458,-500.0,9.964e-05,2]
[348918700,1736873433468,-500.0,9.964e-05,2]
[348918702,1736873433478,-500.0,9.964e-05,2]
[348918704,1736873433488,-500.0,9.964e-05,2]
[348918707,1736873433500,-500.0,9.964e-05,2]
[348918709,1736873433512,-500.0,9.964e-05,2]
[348918711,1736873433524,-500.0,9.964e-05,2]
[348918713,1736873433535,-500.0,9.964e-05,2]
[348918716,1736873433548,-500.10972863,9.964e-05,2]
[348918718,1736873433560,-500.0,9.964e-05,2]
[348918720,1736873433573,-500.0,9.964e-05,2]
[348918722,1736873433585,-500.0,9.964e-05,2]
[348918725,1736873433597,-500.0,9.964e-05,2]
[348918727,1736873433609,-522.5626517,9.964e-05,2]
[348918729,1736873433620,-535.4671915,9.964e-05,2]
[348918732,1736873433634,-500.0,9.964e-05,2]
[348918734,1736873433645,-500.0,9.964e-05,2]
[348918736,1736873433657,-472.48458383,9.964e-05,2]
[348918738,1736873433668,-500.0,9.964e-05,2]
[348918741,1736873433680,-500.0,9.964e-05,2]
[348918743,1736873433694,-500.0,9.964e-05,2]
[348918745,1736873433705,-500.0,9.964e-05,2]
[348918747,1736873433717,-500.0,9.964e-05,2]
[348918749,1736873433729,-500.0,9.964e-05,2]
[348918752,1736873433743,-500.0,9.964e-05,2]
[348918754,1736873433757,-500.0,9.964e-05,2]
[348918756,1736873433772,-500.0,9.964e-05,2]
[348918759,1736873433785,-500.0,9.964e-05,2]
[348918761,1736873433797,-500.0,9.964e-05,2]
[348918763,1736873433809,-500.0,9.964e-05,2]
[348918765,1736873433819,-500.0,9.964e-05,2]
[348918767,1736873433831,-500.0,9.964e-05,2]
[348918769,1736873433842,-500.0,9.964e-05,2]
[348918771,1736873433856,-500.0,9.964e-05,2]
[348918773,1736873433870,-500.0,9.964e-05,2]
[348918774,1736873433882,-500.0,9.964e-05,2]
[348918775,1736873433893,-505.728841,9.964e-05,2]
[348918776,1736873433904,-500.0,9.964e-05,2]
[348918777,1736873433915,-500.0,9.964e-05,2]
[348918779,1736873433926,-500.0,9.964e-05,2]
[348918781,1736873433938,-500.0,9.964e-05,2]
[348918783,1736873433950,-500.0,9.964e-05,2]
[348918786,1736873433963,-504.78802334,9.964e-05,2]
[348918787,1736873433975,-587.24024326,9.964e-05,2]
[348918789,1736873433986,-500.0,9.964e-05,2]
[348918791,1736873433996,-500.0,9.964e-05,2]
[348918793,1736873434009,-500.0,9.964e-05,2]
[348918795,1736873434020,-428.34758759,9.964e-05,2]
[348918797,1736873434032,-500.0,9.964e-05,2]
[348918799,1736873434043,-500.0,9.964e-05,2]
[348918801,1736873434057,-500.0,9.964e-05,2]
[348918803,1736873434069,-500.0,9.964e-05,2]
[348918805,1736873434081,-500.0,9.964e-05,2]
[348918807,1736873434092,-500.0,9.964e-05,2]
[348918810,1736873434108,-500.0,9.964e-05,2]
[348918812,1736873434118,-500.0,9.964e-05,2]
[348918814,1736873434130,-500.0,9.964e-05,2]
[348918816,1736873434141,-500.0,9.964e-05,2]
[348918818,1736873434152,-500.0,9.964e-05,2]
[348918820,1736873434164,-500.0,9.964e-05,2]
[348918822,1736873434176,-190.12798754,9.964e-05,2]
[348918823,1736873434187,-500.0,9.964e-05,2]
[348918824,1736873434198,-250.56090493,9.964e-05,2]
[348918825,1736873434211,-500.0,9.964e-05,2]
[348918826,1736873434222,-500.0,9.964e-05,2]
[348918827,1736873434234,-606.37729132,9.964e-05,2]
[348918828,1736873434246,-500.0,9.964e-05,2]
[348918829,1736873434257,-500.0,9.964e-05,2]
[348918831,1736873434269,-500.0,9.964e-05,2]
[348918833,1736873434280,-500.0,9.964e-05,2]
[348918834,1736873434292,-500.0,9.964e-05,2]
[348918835,1736873434303,-500.0,9.964e-05,2]
[348918836,1736873434315,-500.0,9.964e-05,2]
[348918837,1736873434325,-500.0,9.964e-05,2]
[348918838,1736873434337,-500.0,9.964e-05,2]
[348918839,1736873434349,-500.0,9.964e-05,2]
[348918840,1736873434360,-500.0,9.964e-05,2]
[348918841,1736873434372,-264.27033052,9.964e-05,2]
[348918842,1736873434383,-534.01,9.964e-05,2]
[348918843,1736873434395,-500.0,9.964e-05,2]
[348918844,1736873434407,-500.0,9.964e-05,2]
[348918845,1736873434417,-500.0,9.964e-05,2]
[348918846,1736873434428,-500.0,9.964e-05,2]